[Event "*** Titled Tuesday Blitz"]
[Site "Chess.com"]
[Date "2020.05.26"]
[Round "1"]
[White "Koalaskakistis"]
[Black "Charlottemillard17"]
[Result "1-0"]
[WhiteElo "2460"]
[BlackElo "1451"]
[TimeControl "180+1"]
[EndTime "10:07:29 PDT"]
[Termination "Koalaskakistis won on time"]

1. Nf3 {[%clk 0:02:57.7]} 1... Nc6 {[%clk 0:02:59.1]} 2. d4 {[%clk 0:02:55.9]}
2... e6 {[%clk 0:02:58.6]} 3. e4 {[%clk 0:02:53.6]} 3... Nf6 {[%clk 0:02:56.8]}
4. e5 {[%clk 0:02:51.1]} 4... Nd5 {[%clk 0:02:52.7]} 5. c4 {[%clk 0:02:50.2]}
5... Nde7 {[%clk 0:02:51.5]} 6. Nc3 {[%clk 0:02:50.1]} 6... d5 {[%clk
0:02:46.5]} 7. Be3 {[%clk 0:02:41]} 7... Ng6 {[%clk 0:02:45.3]} 8. h4 {[%clk
0:02:39.4]} 8... h5 {[%clk 0:02:38.4]} 9. g3 {[%clk 0:02:38.1]} 9... Nce7 {[%clk
0:02:38]} 10. Rc1 {[%clk 0:02:36]} 10... c6 {[%clk 0:02:37.4]} 11. Bg5 {[%clk
0:02:29]} 11... Qb6 {[%clk 0:02:26.4]} 12. Qb3 {[%clk 0:02:17.4]} 12... Qxb3
{[%clk 0:02:23.7]} 13. axb3 {[%clk 0:02:18.3]} 13... Bd7 {[%clk 0:02:23.2]} 14.
Bd3 {[%clk 0:02:16.8]} 14... O-O-O {[%clk 0:02:16.8]} 15. cxd5 {[%clk
0:02:04.7]} 15... exd5 {[%clk 0:02:11.1]} 16. b4 {[%clk 0:02:04.3]} 16... Re8
{[%clk 0:01:57.9]} 17. b5 {[%clk 0:02:02.3]} 17... Bg4 {[%clk 0:01:54.1]} 18.
Nd2 {[%clk 0:01:53.3]} 18... Bf5 {[%clk 0:01:43.3]} 19. Be2 {[%clk 0:01:49.7]}
19... Kb8 {[%clk 0:01:40.5]} 20. bxc6 {[%clk 0:01:48.9]} 20... Nxc6 {[%clk
0:01:38.7]} 21. Nb3 {[%clk 0:01:41.2]} 21... f6 {[%clk 0:01:34.9]} 22. exf6
{[%clk 0:01:37]} 22... gxf6 {[%clk 0:01:26.3]} 23. Bxf6 {[%clk 0:01:34.3]} 23...
Rg8 {[%clk 0:01:25.5]} 24. O-O {[%clk 0:01:32.9]} 24... Bb4 {[%clk 0:01:22.1]}
25. Bxh5 {[%clk 0:01:32.4]} 25... Bxc3 {[%clk 0:01:18.9]} 26. bxc3 {[%clk
0:01:31.3]} 26... Re6 {[%clk 0:01:18.8]} 27. Bg5 {[%clk 0:01:27.8]} 27... Bh3
{[%clk 0:01:15.2]} 28. Rfe1 {[%clk 0:01:27]} 28... Rd6 {[%clk 0:01:09.8]} 29.
Nc5 {[%clk 0:01:23.9]} 29... Kc7 {[%clk 0:01:02.2]} 30. Kh2 {[%clk 0:01:11.2]}
30... Bf5 {[%clk 0:00:59.8]} 31. Re3 {[%clk 0:00:57.2]} 31... b6 {[%clk
0:00:50.1]} 32. Nb3 {[%clk 0:00:53.1]} 32... Kb7 {[%clk 0:00:46.6]} 33. Nd2
{[%clk 0:00:43.3]} 33... Rh8 {[%clk 0:00:35.9]} 34. Bf3 {[%clk 0:00:39.4]} 34...
Rd7 {[%clk 0:00:26.8]} 35. c4 {[%clk 0:00:38.5]} 35... Kc7 {[%clk 0:00:24.2]}
36. cxd5 {[%clk 0:00:38.4]} 36... Kb8 {[%clk 0:00:19.6]} 37. dxc6 {[%clk
0:00:37.9]} 37... Rxd4 {[%clk 0:00:18.9]} 38. c7+ {[%clk 0:00:25.9]} 38... Kc8
{[%clk 0:00:18.8]} 39. Nc4 {[%clk 0:00:26.8]} 39... Be6 {[%clk 0:00:11]} 40.
Rxe6 {[%clk 0:00:23.3]} 40... Rd3 {[%clk 0:00:01.7]} 41. Nd6+ {[%clk 0:00:20.7]}
1-0

[Event "*** Titled Tuesday Blitz"]
[Site "Chess.com"]
[Date "2020.05.26"]
[Round "1"]
[White "QueenOfTactics90"]
[Black "thedjoker98"]
[Result "0-1"]
[WhiteElo "1921"]
[BlackElo "2469"]
[TimeControl "180+1"]
[EndTime "10:07:32 PDT"]
[Termination "thedjoker98 won by resignation"]

1. e4 {[%clk 0:03:00.9]} 1... e5 {[%clk 0:02:29.9]} 2. Nf3 {[%clk 0:03:00.2]}
2... Nc6 {[%clk 0:02:26.5]} 3. d4 {[%clk 0:03:00.6]} 3... exd4 {[%clk
0:02:26.6]} 4. Nxd4 {[%clk 0:03:01.5]} 4... Nf6 {[%clk 0:02:26.8]} 5. Nc3 {[%clk
0:03:00.6]} 5... Bb4 {[%clk 0:02:18.3]} 6. Nxc6 {[%clk 0:03:01]} 6... bxc6
{[%clk 0:02:09.9]} 7. Bd3 {[%clk 0:03:01.4]} 7... d5 {[%clk 0:02:09.1]} 8. exd5
{[%clk 0:03:02.3]} 8... O-O {[%clk 0:02:08.8]} 9. O-O {[%clk 0:03:02.6]} 9...
cxd5 {[%clk 0:02:09]} 10. h3 {[%clk 0:03:01.1]} 10... c6 {[%clk 0:02:08.8]} 11.
Qf3 {[%clk 0:02:59.9]} 11... Re8 {[%clk 0:02:07.4]} 12. Bg5 {[%clk 0:02:57.6]}
12... Rb8 {[%clk 0:02:06]} 13. Ne2 {[%clk 0:02:36.7]} 13... Bd6 {[%clk
0:02:03.1]} 14. b3 {[%clk 0:02:34.5]} 14... c5 {[%clk 0:01:41.6]} 15. Nf4 {[%clk
0:02:17.2]} 15... Be7 {[%clk 0:01:12.8]} 16. Rad1 {[%clk 0:02:08.3]} 16... Bb7
{[%clk 0:01:11.4]} 17. Bb5 {[%clk 0:01:38]} 17... Rf8 {[%clk 0:01:09.5]} 18. Qe2
{[%clk 0:01:09]} 18... Bd6 {[%clk 0:00:52.2]} 19. Nxd5 {[%clk 0:01:01.3]} 19...
Bxd5 {[%clk 0:00:51.4]} 20. Bxf6 {[%clk 0:00:57.5]} 20... gxf6 {[%clk
0:00:51.2]} 21. Rxd5 {[%clk 0:00:57]} 21... Bh2+ {[%clk 0:00:51]} 22. Kxh2
{[%clk 0:00:55.3]} 22... Qxd5 {[%clk 0:00:51.9]} 23. Bd3 {[%clk 0:00:50.7]}
23... Qe5+ {[%clk 0:00:50.6]} 24. Qxe5 {[%clk 0:00:46.5]} 24... fxe5 {[%clk
0:00:51.5]} 25. Re1 {[%clk 0:00:46.5]} 25... f6 {[%clk 0:00:49.3]} 26. Re4
{[%clk 0:00:45.6]} 26... Rfd8 {[%clk 0:00:48.4]} 27. Rh4 {[%clk 0:00:43.3]}
27... Rb7 {[%clk 0:00:47.1]} 28. Rh6 {[%clk 0:00:38.2]} 28... Rd6 {[%clk
0:00:43.8]} 29. g4 {[%clk 0:00:37.6]} 29... a5 {[%clk 0:00:40.2]} 30. g5 {[%clk
0:00:36.2]} 30... a4 {[%clk 0:00:23.1]} 31. gxf6 {[%clk 0:00:36]} 31... axb3
{[%clk 0:00:21.4]} 32. axb3 {[%clk 0:00:35.6]} 32... Rbd7 {[%clk 0:00:20.3]} 33.
Kg3 {[%clk 0:00:20.6]} 33... Kf8 {[%clk 0:00:20.5]} 34. Bxh7 {[%clk 0:00:17.8]}
34... Rf7 {[%clk 0:00:19.1]} 35. Kg4 {[%clk 0:00:14.4]} 35... Rfxf6 {[%clk
0:00:17.6]} 36. Rh4 {[%clk 0:00:14.6]} 36... Rf4+ {[%clk 0:00:15.7]} 37. Kg3
{[%clk 0:00:15.1]} 37... Rxh4 {[%clk 0:00:16.2]} 38. Kxh4 {[%clk 0:00:15.7]}
38... Rh6+ {[%clk 0:00:16.7]} 39. Kg5 {[%clk 0:00:16.4]} 39... Rxh7 {[%clk
0:00:17.6]} 40. h4 {[%clk 0:00:17.3]} 40... Rf7 {[%clk 0:00:17.7]} 41. h5 {[%clk
0:00:18.2]} 41... Rxf2 {[%clk 0:00:18.2]} 42. h6 {[%clk 0:00:18.7]} 42... e4
{[%clk 0:00:18.6]} 43. h7 {[%clk 0:00:18.9]} 43... Kg7 {[%clk 0:00:19.1]} 44.
h8=Q+ {[%clk 0:00:17.2]} 44... Kxh8 {[%clk 0:00:19.3]} 0-1

[Event "*** Titled Tuesday Blitz"]
[Site "Chess.com"]
[Date "2020.05.26"]
[Round "1"]
[White "SiddharthGMJagadeesh"]
[Black "Chepaschess"]
[Result "0-1"]
[WhiteElo "2405"]
[BlackElo "2810"]
[TimeControl "180+1"]
[EndTime "10:07:36 PDT"]
[Termination "Chepaschess won on time"]

1. d4 {[%clk 0:03:00.9]} 1... Nf6 {[%clk 0:02:59.3]} 2. Nf3 {[%clk 0:03:01]}
2... g6 {[%clk 0:02:57.4]} 3. g3 {[%clk 0:03:01]} 3... Bg7 {[%clk 0:02:56.5]} 4.
Bg2 {[%clk 0:03:01.9]} 4... O-O {[%clk 0:02:56.7]} 5. O-O {[%clk 0:03:02.5]}
5... d5 {[%clk 0:02:57.1]} 6. Be3 {[%clk 0:03:02.6]} 6... Bf5 {[%clk 0:02:50.5]}
7. Qc1 {[%clk 0:03:02]} 7... c6 {[%clk 0:02:47]} 8. h3 {[%clk 0:02:59.7]} 8...
Nbd7 {[%clk 0:02:43.6]} 9. g4 {[%clk 0:02:57.3]} 9... Be4 {[%clk 0:02:38]} 10.
Nbd2 {[%clk 0:02:55.1]} 10... Re8 {[%clk 0:02:31.1]} 11. Nxe4 {[%clk 0:02:50.1]}
11... Nxe4 {[%clk 0:02:32]} 12. Rd1 {[%clk 0:02:41.7]} 12... Qc7 {[%clk
0:02:14]} 13. c4 {[%clk 0:02:39.2]} 13... dxc4 {[%clk 0:02:05.6]} 14. Qxc4
{[%clk 0:02:38.7]} 14... Nb6 {[%clk 0:02:04.9]} 15. Qc2 {[%clk 0:02:37.9]} 15...
Nf6 {[%clk 0:02:04.9]} 16. Bd2 {[%clk 0:01:59.5]} 16... Nbd5 {[%clk 0:02:04.7]}
17. e4 {[%clk 0:01:52.5]} 17... Nf4 {[%clk 0:01:57.6]} 18. Bxf4 {[%clk 0:01:42]}
18... Qxf4 {[%clk 0:01:57]} 19. Ne5 {[%clk 0:01:42.9]} 19... Rad8 {[%clk
0:01:46.5]} 20. Nd3 {[%clk 0:01:17.4]} 20... Qc7 {[%clk 0:01:40.4]} 21. Nc5
{[%clk 0:01:17.5]} 21... e5 {[%clk 0:01:35.2]} 22. dxe5 {[%clk 0:01:16.1]} 22...
Rxd1+ {[%clk 0:01:27.5]} 23. Rxd1 {[%clk 0:01:17]} 23... Rxe5 {[%clk 0:01:21.4]}
24. f4 {[%clk 0:01:02.7]} 24... Re8 {[%clk 0:01:11.1]} 25. e5 {[%clk 0:01:02.4]}
25... Nd5 {[%clk 0:01:11.2]} 26. Bxd5 {[%clk 0:00:42]} 26... cxd5 {[%clk
0:01:11]} 27. Qc3 {[%clk 0:00:42.7]} 27... b6 {[%clk 0:01:02.9]} 28. Nb3 {[%clk
0:00:41.2]} 28... Qxc3 {[%clk 0:01:00.3]} 29. bxc3 {[%clk 0:00:42.1]} 29... g5
{[%clk 0:01:01]} 30. fxg5 {[%clk 0:00:25.4]} 30... Rxe5 {[%clk 0:01:00.3]} 31.
Nd4 {[%clk 0:00:25.1]} 31... Rxg5 {[%clk 0:00:30.7]} 32. Nf5 {[%clk 0:00:25]}
32... h5 {[%clk 0:00:30]} 33. Rxd5 {[%clk 0:00:24.6]} 33... Kh7 {[%clk
0:00:29.9]} 34. Kh2 {[%clk 0:00:18.3]} 34... hxg4 {[%clk 0:00:23.2]} 35. h4
{[%clk 0:00:17.8]} 35... g3+ {[%clk 0:00:22.3]} 36. Kg2 {[%clk 0:00:17.1]} 36...
Rg4 {[%clk 0:00:20.7]} 37. Nxg3 {[%clk 0:00:07.6]} 37... Bxc3 {[%clk 0:00:18.1]}
38. Kh3 {[%clk 0:00:05.4]} 38... Ra4 {[%clk 0:00:17.8]} 39. Rd7 {[%clk
0:00:05.3]} 39... Kg7 {[%clk 0:00:17.3]} 40. Nf5+ {[%clk 0:00:03.4]} 40... Kf6
{[%clk 0:00:16.6]} 41. Ne3 {[%clk 0:00:03.2]} 41... Ke6 {[%clk 0:00:13]} 42. Rd3
{[%clk 0:00:02.6]} 42... Bd4 {[%clk 0:00:11.9]} 0-1

[Event "*** Titled Tuesday Blitz"]
[Site "Chess.com"]
[Date "2020.05.26"]
[Round "1"]
[White "Goryachkina"]
[Black "Enriquack"]
[Result "1/2-1/2"]
[WhiteElo "2631"]
[BlackElo "2316"]
[TimeControl "180+1"]
[EndTime "10:07:37 PDT"]
[Termination "Game drawn by repetition"]

1. e4 {[%clk 0:03:00.3]} 1... c5 {[%clk 0:02:56.8]} 2. Nf3 {[%clk 0:02:59.9]}
2... e6 {[%clk 0:02:56.9]} 3. c3 {[%clk 0:02:59.1]} 3... d5 {[%clk 0:02:56.8]}
4. exd5 {[%clk 0:02:58.9]} 4... Qxd5 {[%clk 0:02:57.7]} 5. d4 {[%clk 0:02:58.8]}
5... Nf6 {[%clk 0:02:58.2]} 6. Na3 {[%clk 0:02:53.1]} 6... Nc6 {[%clk
0:02:55.4]} 7. Nb5 {[%clk 0:02:50]} 7... Qd8 {[%clk 0:02:31.6]} 8. Be3 {[%clk
0:02:32]} 8... a6 {[%clk 0:02:26.2]} 9. Na3 {[%clk 0:02:30.4]} 9... cxd4 {[%clk
0:02:23.3]} 10. Nxd4 {[%clk 0:02:30]} 10... Nxd4 {[%clk 0:01:58.8]} 11. Bxd4
{[%clk 0:02:28.8]} 11... Bxa3 {[%clk 0:01:56.6]} 12. Qa4+ {[%clk 0:02:24.8]}
12... Bd7 {[%clk 0:01:53.3]} 13. Qxa3 {[%clk 0:02:24.5]} 13... Qc7 {[%clk
0:01:44.4]} 14. Be2 {[%clk 0:02:13.4]} 14... Bc6 {[%clk 0:01:40.4]} 15. O-O
{[%clk 0:02:07.1]} 15... h5 {[%clk 0:01:32.1]} 16. f4 {[%clk 0:01:30.7]} 16...
Rd8 {[%clk 0:01:17.1]} 17. Bf3 {[%clk 0:01:24.4]} 17... h4 {[%clk 0:01:05.4]}
18. Bxc6+ {[%clk 0:01:14.1]} 18... Qxc6 {[%clk 0:01:05.4]} 19. h3 {[%clk
0:01:10.3]} 19... Rd5 {[%clk 0:00:43]} 20. Rad1 {[%clk 0:01:06.6]} 20... Rhh5
{[%clk 0:00:41.4]} 21. Qb3 {[%clk 0:00:32.2]} 21... Rhf5 {[%clk 0:00:34.6]} 22.
Bxf6 {[%clk 0:00:19]} 22... gxf6 {[%clk 0:00:34.3]} 23. Qb4 {[%clk 0:00:17]}
23... Rb5 {[%clk 0:00:26]} 24. Qd4 {[%clk 0:00:16.4]} 24... Rbd5 {[%clk
0:00:23.4]} 25. Qe3 {[%clk 0:00:16.3]} 25... Rxd1 {[%clk 0:00:21.5]} 26. Rxd1
{[%clk 0:00:17.2]} 26... Rd5 {[%clk 0:00:22]} 27. Rxd5 {[%clk 0:00:15.1]} 27...
Qxd5 {[%clk 0:00:22.9]} 28. Qf2 {[%clk 0:00:13.7]} 28... Qxa2 {[%clk 0:00:21.4]}
29. Qxh4 {[%clk 0:00:12.2]} 29... Ke7 {[%clk 0:00:21.9]} 30. Qf2 {[%clk
0:00:11.9]} 30... Qb1+ {[%clk 0:00:21.9]} 31. Kh2 {[%clk 0:00:11.9]} 31... Qe4
{[%clk 0:00:21.9]} 32. g3 {[%clk 0:00:11.3]} 32... Qd5 {[%clk 0:00:20.4]} 33. h4
{[%clk 0:00:11]} 33... b5 {[%clk 0:00:19.5]} 34. Qe2 {[%clk 0:00:10.5]} 34...
Kf8 {[%clk 0:00:19.7]} 35. b4 {[%clk 0:00:07.2]} 35... f5 {[%clk 0:00:16.9]} 36.
Qe3 {[%clk 0:00:06.5]} 36... Kg7 {[%clk 0:00:16.9]} 37. Qd4+ {[%clk 0:00:04.6]}
37... Qxd4 {[%clk 0:00:12.3]} 38. cxd4 {[%clk 0:00:05.5]} 38... Kg6 {[%clk
0:00:12.9]} 39. Kg2 {[%clk 0:00:04.9]} 39... f6 {[%clk 0:00:09.7]} 40. Kf3
{[%clk 0:00:04.7]} 40... Kh6 {[%clk 0:00:10]} 41. Kf2 {[%clk 0:00:03.9]} 41...
Kh5 {[%clk 0:00:10.3]} 42. Kf3 {[%clk 0:00:03.8]} 42... Kh6 {[%clk 0:00:10.2]}
43. Kf2 {[%clk 0:00:02.4]} 43... Kh5 {[%clk 0:00:10.6]} 44. Kf3 {[%clk
0:00:02.8]} 44... Kh6 {[%clk 0:00:11.1]} 1/2-1/2

[Event "*** Titled Tuesday Blitz"]
[Site "Chess.com"]
[Date "2020.05.26"]
[Round "1"]
[White "Djager97"]
[Black "Azeryahu"]
[Result "0-1"]
[WhiteElo "2390"]
[BlackElo "2763"]
[TimeControl "180+1"]
[EndTime "10:07:38 PDT"]
[Termination "Azeryahu won by resignation"]

1. e4 {[%clk 0:03:00.9]} 1... c6 {[%clk 0:02:59.7]} 2. d4 {[%clk 0:03:00.9]}
2... d5 {[%clk 0:02:59.8]} 3. Nc3 {[%clk 0:03:01.6]} 3... dxe4 {[%clk
0:02:59.4]} 4. Nxe4 {[%clk 0:03:02.5]} 4... Bf5 {[%clk 0:02:59.8]} 5. Ng3 {[%clk
0:03:02.5]} 5... Bg6 {[%clk 0:03:00.3]} 6. Nf3 {[%clk 0:03:03.1]} 6... Nf6
{[%clk 0:02:58.4]} 7. h4 {[%clk 0:03:02.1]} 7... Nh5 {[%clk 0:02:58.8]} 8. Ne5
{[%clk 0:02:52]} 8... Nxg3 {[%clk 0:02:58]} 9. fxg3 {[%clk 0:02:52.9]} 9... Nd7
{[%clk 0:02:42.7]} 10. Nxg6 {[%clk 0:02:46.3]} 10... hxg6 {[%clk 0:02:42.4]} 11.
Bc4 {[%clk 0:02:24.7]} 11... e6 {[%clk 0:02:41.5]} 12. Qf3 {[%clk 0:02:20.2]}
12... Nb6 {[%clk 0:02:32.9]} 13. Bb3 {[%clk 0:02:20.3]} 13... Qxd4 {[%clk
0:02:19.7]} 14. Be3 {[%clk 0:02:20.2]} 14... Qf6 {[%clk 0:02:20.2]} 15. Qxf6
{[%clk 0:02:09.2]} 15... gxf6 {[%clk 0:02:19.1]} 16. O-O {[%clk 0:02:07.8]}
16... f5 {[%clk 0:02:01.2]} 17. Rad1 {[%clk 0:01:51.2]} 17... Bg7 {[%clk
0:01:54.7]} 18. c3 {[%clk 0:01:38.8]} 18... Rd8 {[%clk 0:01:50.6]} 19. a4 {[%clk
0:01:27.1]} 19... Rxd1 {[%clk 0:01:43.9]} 20. Rxd1 {[%clk 0:01:28]} 20... Nc8
{[%clk 0:01:42.3]} 21. a5 {[%clk 0:01:21.5]} 21... a6 {[%clk 0:01:42.4]} 22. Bc5
{[%clk 0:01:12.6]} 22... Bf8 {[%clk 0:01:30.6]} 23. Bd4 {[%clk 0:01:03.3]} 23...
Rg8 {[%clk 0:01:31]} 24. Bc2 {[%clk 0:00:45.1]} 24... Bd6 {[%clk 0:01:30.6]} 25.
Kf2 {[%clk 0:00:41.7]} 25... Ke7 {[%clk 0:01:30.4]} 26. Be3 {[%clk 0:00:38.8]}
26... Be5 {[%clk 0:01:17.4]} 27. Bc5+ {[%clk 0:00:32.7]} 27... Nd6 {[%clk
0:01:15.3]} 28. b4 {[%clk 0:00:29.9]} 28... Rd8 {[%clk 0:01:11.8]} 29. Kf3
{[%clk 0:00:18.6]} 29... Bxc3 {[%clk 0:01:09.9]} 30. g4 {[%clk 0:00:13]} 30...
fxg4+ {[%clk 0:01:06.6]} 31. Kxg4 {[%clk 0:00:13.9]} 31... Be5 {[%clk
0:01:06.4]} 32. Kf3 {[%clk 0:00:13.7]} 32... Ke8 {[%clk 0:01:02.8]} 33. g4
{[%clk 0:00:14.1]} 33... Nc8 {[%clk 0:00:43.5]} 34. Rxd8+ {[%clk 0:00:09.5]}
34... Kxd8 {[%clk 0:00:44.4]} 35. h5 {[%clk 0:00:09.9]} 35... gxh5 {[%clk
0:00:44.3]} 36. gxh5 {[%clk 0:00:10.8]} 36... Ke8 {[%clk 0:00:32.7]} 37. h6
{[%clk 0:00:08.7]} 37... f5 {[%clk 0:00:32.8]} 38. Bb3 {[%clk 0:00:05.3]} 38...
Kf7 {[%clk 0:00:31]} 39. h7 {[%clk 0:00:04.8]} 39... Ne7 {[%clk 0:00:24.2]} 40.
Be3 {[%clk 0:00:03.1]} 40... Nd5 {[%clk 0:00:19.8]} 41. Bh6 {[%clk 0:00:02]}
41... Kg6 {[%clk 0:00:15.4]} 42. Bf4 {[%clk 0:00:02.1]} 42... Nxf4 {[%clk
0:00:13.1]} 0-1

[Event "*** Titled Tuesday Blitz"]
[Site "Chess.com"]
[Date "2020.05.26"]
[Round "1"]
[White "GMJustin"]
[Black "kleinebeer98"]
[Result "0-1"]
[WhiteElo "2306"]
[BlackElo "2663"]
[TimeControl "180+1"]
[EndTime "10:07:40 PDT"]
[Termination "kleinebeer98 won on time"]

1. d4 {[%clk 0:02:45.5]} 1... d5 {[%clk 0:02:53.7]} 2. c4 {[%clk 0:02:43.8]}
2... Nc6 {[%clk 0:02:53.5]} 3. Nc3 {[%clk 0:02:33.4]} 3... Nf6 {[%clk 0:02:52]}
4. cxd5 {[%clk 0:02:09.2]} 4... Nxd5 {[%clk 0:02:52.9]} 5. Nf3 {[%clk
0:02:09.2]} 5... Bf5 {[%clk 0:02:26.2]} 6. Qb3 {[%clk 0:01:54.9]} 6... e6 {[%clk
0:01:53.3]} 7. e4 {[%clk 0:00:59.7]} 7... Nxc3 {[%clk 0:01:48]} 8. exf5 {[%clk
0:00:59.4]} 8... Nd5 {[%clk 0:01:25.1]} 9. fxe6 {[%clk 0:00:39.9]} 9... Bb4+
{[%clk 0:01:21.8]} 10. Bd2 {[%clk 0:00:33.3]} 10... O-O {[%clk 0:01:03.3]} 11.
exf7+ {[%clk 0:00:31.1]} 11... Kh8 {[%clk 0:01:00.3]} 12. Bxb4 {[%clk
0:00:20.6]} 12... Ndxb4 {[%clk 0:00:58.3]} 13. Bc4 {[%clk 0:00:16.8]} 13... Qe7+
{[%clk 0:00:54.5]} 14. Kf1 {[%clk 0:00:16.4]} 14... Na5 {[%clk 0:00:48.6]} 15.
Qc3 {[%clk 0:00:15.4]} 15... Nxc4 {[%clk 0:00:35.5]} 16. Qxc4 {[%clk 0:00:15.7]}
16... a5 {[%clk 0:00:33.9]} 17. Re1 {[%clk 0:00:15.1]} 17... Qxf7 {[%clk
0:00:30.2]} 18. Qxf7 {[%clk 0:00:14.4]} 18... Rxf7 {[%clk 0:00:31.1]} 19. a3
{[%clk 0:00:14.5]} 19... Nd3 {[%clk 0:00:31.5]} 20. Ne5 {[%clk 0:00:14.3]} 20...
Rxf2+ {[%clk 0:00:24.8]} 21. Kg1 {[%clk 0:00:14.5]} 21... Rd2 {[%clk 0:00:24]}
22. Nxd3 {[%clk 0:00:08.4]} 22... Rxd3 {[%clk 0:00:24.9]} 23. h4 {[%clk
0:00:04.5]} 23... Rxd4 {[%clk 0:00:18.5]} 24. Re7 {[%clk 0:00:04.6]} 24... Rc4
{[%clk 0:00:15.4]} 25. Rh3 {[%clk 0:00:04.4]} 25... Rg8 {[%clk 0:00:10]} 26. Rd3
{[%clk 0:00:03.8]} 26... b5 {[%clk 0:00:07.5]} 27. Rdd7 {[%clk 0:00:02]} 27...
c5 {[%clk 0:00:06.1]} 28. h5 {[%clk 0:00:02.3]} 28... Rh4 {[%clk 0:00:06.5]} 29.
Rb7 {[%clk 0:00:01.3]} 29... b4 {[%clk 0:00:06.3]} 30. axb4 {[%clk 0:00:01.6]}
30... axb4 {[%clk 0:00:05.9]} 31. Rec7 {[%clk 0:00:01.7]} 31... Rxh5 {[%clk
0:00:05.9]} 32. Rb5 {[%clk 0:00:01.9]} 32... h6 {[%clk 0:00:05.4]} 33. Rcxc5
{[%clk 0:00:01.8]} 33... Rxc5 {[%clk 0:00:06.3]} 34. Rxc5 {[%clk 0:00:02]} 34...
Rb8 {[%clk 0:00:06.3]} 35. Rc4 {[%clk 0:00:02.1]} 35... Kh7 {[%clk 0:00:05.9]}
36. Kh2 {[%clk 0:00:02.5]} 36... g5 {[%clk 0:00:05.8]} 37. b3 {[%clk 0:00:02.7]}
37... Kg6 {[%clk 0:00:06.1]} 38. g4 {[%clk 0:00:03.1]} 38... Kf6 {[%clk
0:00:06.2]} 39. Kg3 {[%clk 0:00:03.4]} 39... Ke5 {[%clk 0:00:06.5]} 40. Rc6
{[%clk 0:00:03.7]} 40... Kd4 {[%clk 0:00:05.9]} 41. Rxh6 {[%clk 0:00:01.1]}
41... Kc3 {[%clk 0:00:06.2]} 0-1

[Event "*** Titled Tuesday Blitz"]
[Site "Chess.com"]
[Date "2020.05.26"]
[Round "1"]
[White "BabyFacedAssasin"]
[Black "kingmonkey2006"]
[Result "0-1"]
[WhiteElo "2237"]
[BlackElo "2584"]
[TimeControl "180+1"]
[EndTime "10:07:40 PDT"]
[Termination "kingmonkey2006 won by resignation"]

1. e4 {[%clk 0:03:00.9]} 1... c5 {[%clk 0:02:58.8]} 2. Nf3 {[%clk 0:03:00.7]}
2... d6 {[%clk 0:02:59.2]} 3. d4 {[%clk 0:03:01.2]} 3... cxd4 {[%clk 0:03:00.1]}
4. Nxd4 {[%clk 0:03:02]} 4... Nf6 {[%clk 0:03:00.5]} 5. Nc3 {[%clk 0:03:02.7]}
5... a6 {[%clk 0:03:00.9]} 6. h3 {[%clk 0:03:03.3]} 6... e5 {[%clk 0:03:00]} 7.
Nde2 {[%clk 0:03:02.7]} 7... h5 {[%clk 0:03:00.1]} 8. Bg5 {[%clk 0:03:02.1]}
8... Be6 {[%clk 0:02:59.7]} 9. Bxf6 {[%clk 0:03:02]} 9... Qxf6 {[%clk
0:03:00.6]} 10. Nd5 {[%clk 0:03:02.5]} 10... Qd8 {[%clk 0:03:00.4]} 11. Nec3
{[%clk 0:02:56.5]} 11... Nd7 {[%clk 0:03:00.3]} 12. Bc4 {[%clk 0:02:48.3]} 12...
g6 {[%clk 0:02:35.2]} 13. Bb3 {[%clk 0:02:30.6]} 13... Bh6 {[%clk 0:02:27.6]}
14. O-O {[%clk 0:02:23]} 14... O-O {[%clk 0:01:59.7]} 15. Qe2 {[%clk 0:01:36.7]}
15... b5 {[%clk 0:01:36.4]} 16. Rad1 {[%clk 0:01:33.5]} 16... Nc5 {[%clk
0:01:23.4]} 17. f4 {[%clk 0:01:13.4]} 17... b4 {[%clk 0:01:18.6]} 18. f5 {[%clk
0:00:48.5]} 18... bxc3 {[%clk 0:01:18]} 19. fxe6 {[%clk 0:00:48.5]} 19... Nxe6
{[%clk 0:01:07.6]} 20. Nxc3 {[%clk 0:00:47.3]} 20... Nd4 {[%clk 0:01:01.9]} 21.
Qd3 {[%clk 0:00:45.3]} 21... a5 {[%clk 0:00:52.3]} 22. Nd5 {[%clk 0:00:43.9]}
22... a4 {[%clk 0:00:49.6]} 23. Bc4 {[%clk 0:00:43]} 23... Rc8 {[%clk
0:00:46.5]} 24. c3 {[%clk 0:00:40.7]} 24... Ne6 {[%clk 0:00:46.3]} 25. Bb5
{[%clk 0:00:34]} 25... Bf4 {[%clk 0:00:38.7]} 26. Bxa4 {[%clk 0:00:28.2]} 26...
Nc5 {[%clk 0:00:37.6]} 27. Qc2 {[%clk 0:00:28]} 27... Bg3 {[%clk 0:00:36.1]} 28.
Bb3 {[%clk 0:00:22.2]} 28... Qg5 {[%clk 0:00:33.5]} 29. Rf3 {[%clk 0:00:20.1]}
29... Kg7 {[%clk 0:00:29.6]} 30. Qe2 {[%clk 0:00:18.2]} 30... h4 {[%clk
0:00:29.1]} 31. Rdf1 {[%clk 0:00:18]} 31... Rb8 {[%clk 0:00:24.4]} 32. Qd1
{[%clk 0:00:16.4]} 32... Nxe4 {[%clk 0:00:20.8]} 33. Bc2 {[%clk 0:00:15.5]}
33... Nd2 {[%clk 0:00:19.4]} 34. b4 {[%clk 0:00:08.6]} 34... Nxf1 {[%clk
0:00:18.1]} 35. Qxf1 {[%clk 0:00:08.9]} 35... f5 {[%clk 0:00:18.1]} 36. Qa6
{[%clk 0:00:07.4]} 36... Qc1+ {[%clk 0:00:17.6]} 37. Rf1 {[%clk 0:00:06.9]}
37... Qxc2 {[%clk 0:00:15.4]} 38. Qa7+ {[%clk 0:00:07.3]} 38... Kh6 {[%clk
0:00:14.6]} 39. Qe7 {[%clk 0:00:07.4]} 39... Qd2 {[%clk 0:00:11.2]} 40. Nf6
{[%clk 0:00:07.4]} 40... Rxf6 {[%clk 0:00:07.7]} 41. Qxf6 {[%clk 0:00:07.4]}
41... Qe3+ {[%clk 0:00:07.8]} 42. Kh1 {[%clk 0:00:07.4]} 42... Qg5 {[%clk
0:00:08.7]} 43. Qxd6 {[%clk 0:00:07.5]} 43... Re8 {[%clk 0:00:09]} 44. b5 {[%clk
0:00:07.3]} 44... e4 {[%clk 0:00:09.3]} 45. b6 {[%clk 0:00:07.9]} 45... Bxd6
{[%clk 0:00:09.4]} 0-1